bitfinex/quotes_BTCUSD_20250604
["timestamp","ask_amount","ask_price","bid_price","bid_amount"]
[1749011994628,1.37706684,105430.0,105420.0,0.89732]
[1749011994843,1.35934297,105430.0,105420.0,0.89732]
[1749011995269,1.37706682,105430.0,105420.0,0.89732]
[1749011995471,1.35934297,105430.0,105420.0,0.89732]
[1749011995722,1.37706682,105430.0,105420.0,0.89732]
[1749011995922,1.35934297,105430.0,105420.0,0.89732]
[1749011996147,1.35934472,105430.0,105420.0,0.89732]
[1749011996781,1.37706865,105430.0,105420.0,0.89732]
[1749011997026,1.35934472,105430.0,105420.0,0.89732]
[1749011997238,1.37706866,105430.0,105420.0,0.89732]
[1749011997480,1.35934472,105430.0,105420.0,0.89732]
[1749011997701,1.37706862,105430.0,105420.0,0.89732]
[1749011997913,1.35934472,105430.0,105420.0,0.89732]
[1749011998784,1.37706862,105430.0,105420.0,0.89732]
[1749011998993,1.35934472,105430.0,105420.0,0.89732]
[1749011999429,1.37706862,105430.0,105420.0,0.89732]
[1749011999849,1.37706873,105430.0,105420.0,0.89732]
[1749012000067,1.36801565,105430.0,105420.0,0.89732]
[1749012000282,1.35934849,105430.0,105420.0,0.89732]
[1749012000927,1.37707277,105430.0,105420.0,0.89732]
[1749012001145,1.35934849,105430.0,105420.0,0.89732]
[1749012001372,1.37707277,105430.0,105420.0,0.89732]
[1749012001584,1.35934849,105430.0,105420.0,0.89732]
[1749012002012,1.3770727,105430.0,105420.0,0.89732]
[1749012002431,1.35934849,105430.0,105420.0,0.89732]
[1749012002673,1.35935122,105430.0,105420.0,0.89732]
[1749012003791,1.37707544,105430.0,105420.0,0.89732]
[1749012004014,1.35935122,105430.0,105420.0,0.89732]
[1749012005236,1.37707546,105430.0,105420.0,0.89732]
[1749012005395,1.35935122,105430.0,105420.0,0.89732]
[1749012006081,1.37707546,105430.0,105420.0,0.89732]
[1749012006479,1.35935122,105430.0,105420.0,0.89732]
[1749012006706,1.35935967,105430.0,105420.0,0.89732]
[1749012007214,1.37708391,105430.0,105420.0,0.89732]
[1749012007442,1.3770839,105430.0,105420.0,0.89732]
[1749012007657,1.35935967,105430.0,105420.0,0.89732]
[1749012008480,1.37708388,105430.0,105420.0,0.89732]
[1749012008841,1.35935967,105430.0,105420.0,0.89732]
[1749012010743,1.37708599,105430.0,105420.0,0.89732]
[1749012010949,1.35936178,105430.0,105420.0,0.89732]
[1749012012608,0.56805686,105430.0,105420.0,0.89732]
[1749012012834,1.35936178,105430.0,105420.0,0.89732]
[1749012013473,1.37708601,105430.0,105420.0,0.89732]
[1749012013687,1.35936178,105430.0,105420.0,0.89732]
[1749012014791,1.35936444,105430.0,105420.0,0.89732]
[1749012015223,1.37708871,105430.0,105420.0,0.89732]
[1749012015445,1.37708867,105430.0,105420.0,0.89732]
[1749012015658,1.35936444,105430.0,105420.0,0.89732]
[1749012015866,1.35922935,105430.0,105420.0,0.89728]
[1749012016804,1.37695358,105430.0,105420.0,0.89728]
[1749012017489,1.39467781,105430.0,105420.0,0.89728]
[1749012017696,1.37695358,105430.0,105420.0,0.89728]
[1749012017937,1.39467781,105430.0,105420.0,0.89728]
[1749012018137,1.37695358,105430.0,105420.0,0.89728]
[1749012018555,1.39467781,105430.0,105420.0,0.89728]
[1749012018757,1.44242109,105430.0,105420.0,0.89728]
[1749012020019,1.46014508,105430.0,105420.0,0.89728]
[1749012020181,1.44242109,105430.0,105420.0,0.89728]
[1749012020393,1.44354508,105430.0,105420.0,0.89728]
[1749012020947,1.46126907,105430.0,105420.0,0.89728]
[1749012021362,1.44354508,105430.0,105420.0,0.89728]
[1749012021805,1.45984508,105430.0,105420.0,0.89728]
[1749012022010,1.45984508,105430.0,105420.0,0.89724]
[1749012022416,1.47756907,105430.0,105420.0,0.89724]
[1749012022656,1.47760918,105430.0,105420.0,0.89724]
[1749012022854,1.46130918,105430.0,105420.0,0.89724]
[1749012023135,1.44358519,105430.0,105420.0,0.89724]
[1749012023338,1.46130918,105430.0,105420.0,0.89724]
[1749012023570,1.44358519,105430.0,105420.0,0.89724]
[1749012023773,1.44358519,105430.0,105420.0,0.8972]
[1749012024387,1.46130857,105430.0,105420.0,0.8972]
[1749012024563,1.44358519,105430.0,105420.0,0.8972]
[1749012024767,1.46130909,105430.0,105420.0,0.8972]
[1749012025214,1.44358519,105430.0,105420.0,0.8972]
[1749012025943,1.46130914,105430.0,105420.0,0.8972]
[1749012026204,1.44358519,105430.0,105420.0,0.8972]
[1749012026409,1.46130914,105430.0,105420.0,0.8972]
[1749012026617,1.44358519,105430.0,105420.0,0.8972]
[1749012026825,1.44360056,105430.0,105420.0,0.8972]
[1749012027729,1.46132419,105430.0,105420.0,0.8972]
[1749012027940,1.44360056,105430.0,105420.0,0.8972]
[1749012028165,1.46132419,105430.0,105420.0,0.8972]
[1749012028394,1.44360056,105430.0,105420.0,0.8972]
[1749012028629,1.46132451,105430.0,105420.0,0.8972]
[1749012028834,1.44360056,105430.0,105420.0,0.8972]
[1749012029420,1.46132451,105430.0,105420.0,0.8972]
[1749012029625,1.44360056,105430.0,105420.0,0.8972]
[1749012030072,1.44361518,105430.0,105420.0,0.8972]
[1749012030282,1.46133913,105430.0,105420.0,0.8972]
[1749012030481,1.44361518,105430.0,105420.0,0.8972]
[1749012030687,1.46133913,105430.0,105420.0,0.8972]
[1749012030897,1.46133918,105430.0,105420.0,0.8972]
[1749012031104,1.44361523,105430.0,105420.0,0.8972]
[1749012032172,1.46133918,105430.0,105420.0,0.8972]
[1749012032379,1.44361523,105430.0,105420.0,0.8972]
[1749012032794,1.44361557,105430.0,105420.0,0.8972]
[1749012034057,1.46133943,105430.0,105420.0,0.8972]
[1749012034270,1.46001557,105430.0,105420.0,0.8972]
[1749012034477,1.42652332,105430.0,105420.0,0.8972]
[1749012034686,1.46001368,105430.0,105420.0,0.8972]
[1749012034896,1.46001179,105430.0,105420.0,0.8972]
[1749012035102,1.47773545,105430.0,105420.0,0.8972]
[1749012035547,1.46133545,105430.0,105420.0,0.8972]
[1749012036159,1.47905913,105430.0,105420.0,0.8972]
[1749012036386,1.46133545,105430.0,105420.0,0.8972]
[1749012038354,1.85698791,105430.0,105420.0,0.8972]
[1749012038554,1.87471148,105430.0,105420.0,0.60748]
[1749012038770,1.85698791,105430.0,105420.0,0.89716]
[1749012038980,1.85700425,105430.0,105420.0,0.89716]
[1749012039449,1.87473461,105430.0,105420.0,0.89716]
[1749012039827,1.85700425,105430.0,105420.0,0.89716]
[1749012040783,1.87473463,105430.0,105420.0,0.89716]
[1749012041003,1.85700425,105430.0,105420.0,0.89716]
[1749012041222,1.87473471,105430.0,105420.0,0.89716]
[1749012041689,1.85700425,105430.0,105420.0,0.89716]
[1749012041907,1.87473469,105430.0,105420.0,0.89716]
[1749012042130,1.85700425,105430.0,105420.0,0.89716]
[1749012042814,1.80011107,105430.0,105420.0,0.89716]
[1749012043033,1.8747334,105430.0,105420.0,0.89716]
[1749012043249,1.85700301,105430.0,105420.0,0.89716]
[1749012043473,1.87473343,105430.0,105420.0,0.89716]
[1749012043698,1.85700301,105430.0,105420.0,0.89716]
[1749012043885,1.8747334,105430.0,105420.0,0.89716]
[1749012044124,1.85700301,105430.0,105420.0,0.89716]
[1749012044340,1.87473339,105430.0,105420.0,0.89716]
[1749012044578,1.85700301,105430.0,105420.0,0.89716]
[1749012044802,1.87473319,105430.0,105420.0,0.89716]
[1749012045035,1.85700301,105430.0,105420.0,0.89716]
[1749012045253,1.46135055,105430.0,105420.0,0.89716]
[1749012045749,1.47908072,105430.0,105420.0,0.89716]
[1749012045976,1.46135055,105430.0,105420.0,0.89716]
[1749012046429,1.47908072,105430.0,105420.0,0.89716]
[1749012046648,1.46135055,105430.0,105420.0,0.89716]
[1749012046870,1.38672821,105430.0,105420.0,0.89716]
[1749012047054,1.46134521,105430.0,105420.0,0.89716]
[1749012047298,1.47907539,105430.0,105420.0,0.89716]
[1749012047512,1.46134521,105430.0,105420.0,0.89716]
[1749012048837,1.47907558,105430.0,105420.0,0.89716]
[1749012049002,1.46134521,105430.0,105420.0,0.89716]
[1749012049202,1.47907558,105430.0,105420.0,0.89716]
[1749012049430,1.44680436,105430.0,105420.0,0.89716]
[1749012050093,1.46453895,105430.0,105420.0,0.89716]
[1749012050306,1.44680436,105430.0,105420.0,0.89716]
[1749012050950,1.44681868,105430.0,105420.0,0.89716]
[1749012051153,1.46455276,105430.0,105420.0,0.89716]
[1749012051385,1.44681868,105430.0,105420.0,0.89716]
[1749012052441,1.46455277,105430.0,105420.0,0.89716]
[1749012052661,1.44681868,105430.0,105420.0,0.89716]
[1749012053501,1.46455276,105430.0,105420.0,0.89716]
[1749012053729,1.46455256,105430.0,105420.0,0.89716]
[1749012053987,1.44681868,105430.0,105420.0,0.89716]
[1749012054818,1.46455224,105430.0,105420.0,0.89716]
[1749012055043,1.44681647,105430.0,105420.0,0.89716]
[1749012055258,1.46455003,105430.0,105420.0,0.89716]
[1749012055477,1.44681647,105430.0,105420.0,0.89716]
[1749012055699,1.46455003,105430.0,105420.0,0.89716]
[1749012055935,1.44681647,105430.0,105420.0,0.89716]
[1749012056363,1.46455036,105430.0,105420.0,0.89716]
[1749012056501,1.46455037,105430.0,105420.0,0.89716]
[1749012056715,1.44681647,105430.0,105420.0,0.89716]
[1749012056921,1.46455038,105430.0,105420.0,0.89716]
[1749012057746,1.44945038,105430.0,105420.0,0.89716]
[1749012057948,1.48491818,105430.0,105420.0,0.89716]
[1749012058170,1.46718428,105430.0,105420.0,0.89716]
[1749012058981,1.45810828,105430.0,105420.0,0.89716]
[1749012059224,1.48491887,105430.0,105420.0,0.89716]
[1749012059344,1.46718497,105430.0,105420.0,0.89716]
[1749012059781,1.48491886,105430.0,105420.0,0.89716]
[1749012060016,1.46718497,105430.0,105420.0,0.89716]
[1749012060233,1.87943743,105430.0,105420.0,0.60744]
[1749012060461,1.89101613,105430.0,105420.0,0.3784]
[1749012060694,1.87328335,105430.0,105420.0,0.3784]
[1749012060902,1.89101614,105430.0,105420.0,0.3784]
[1749012061116,1.87328335,105430.0,105420.0,0.3784]
[1749012061336,1.89101628,105430.0,105420.0,0.3784]
[1749012061570,1.87328487,105430.0,105420.0,0.28964]
[1749012061799,1.89101788,105430.0,105420.0,0.28964]
[1749012062010,1.87328487,105430.0,105420.0,0.28964]
[1749012062230,0.34,105420.0,105400.0,0.0418]
[1749012062437,0.79130492,105410.0,105400.0,0.04189131]
[1749012062650,0.79130492,105410.0,105400.0,0.33149131]
[1749012064050,0.79130492,105410.0,105400.0,0.33349131]
[1749012064474,0.79130492,105410.0,105400.0,0.33649131]
[1749012065328,0.79130492,105410.0,105400.0,0.94093131]
[1749012065768,0.79130492,105410.0,105400.0,0.94393131]
[1749012069069,0.79130492,105410.0,105400.0,0.65433131]
[1749012069297,0.79130492,105410.0,105400.0,0.94393131]
[1749012083984,0.34,105420.0,105410.0,0.0325]
[1749012084238,1.13130492,105420.0,105410.0,0.0325]
[1749012085203,1.13130492,105420.0,105410.0,0.0335]
[1749012086035,1.13130492,105420.0,105410.0,0.0345]
[1749012089173,1.13130492,105420.0,105410.0,0.32402]
[1749012090064,1.13130492,105420.0,105410.0,0.4127]
[1749012091235,1.13130492,105420.0,105410.0,0.12318]
[1749012091469,1.13130492,105420.0,105410.0,0.38016]
[1749012093780,1.13130492,105420.0,105410.0,0.09068]
[1749012094000,1.13130492,105420.0,105410.0,0.38016]
[1749012094236,1.13130492,105420.0,105410.0,0.09068]
[1749012094483,1.13130492,105420.0,105410.0,0.38016]
[1749012094956,1.13130492,105420.0,105410.0,0.62584]
[1749012097202,1.13130492,105420.0,105410.0,0.33636]
[1749012097744,1.16220492,105420.0,105410.0,0.62584]
[1749012097981,1.57559238,105420.0,105410.0,0.24768]
[1749012098214,1.66277978,105420.0,105410.0,0.62584]
[1749012098918,1.66277978,105420.0,105410.0,0.6258]
[1749012101262,1.65371168,105420.0,105410.0,0.6258]
[1749012101889,1.65371168,105420.0,105410.0,0.24768]
[1749012102115,1.65371168,105420.0,105410.0,0.6258]
[1749012102379,1.67144728,105420.0,105410.0,0.6258]
[1749012102584,1.65371168,105420.0,105410.0,0.6258]
[1749012102791,1.67144733,105420.0,105410.0,0.6258]
[1749012103004,1.65371168,105420.0,105410.0,0.6258]
[1749012103217,1.67144732,105420.0,105410.0,0.6258]
[1749012103436,1.65371168,105420.0,105410.0,0.6258]
[1749012103663,1.67144728,105420.0,105410.0,0.6258]
[1749012103877,1.67144728,105420.0,105410.0,0.24768]
[1749012104086,1.65371168,105420.0,105410.0,0.6258]
[1749012104762,1.66278125,105420.0,105410.0,0.6258]
[1749012104994,1.68051685,105420.0,105410.0,0.6258]
[1749012105199,1.66278125,105420.0,105410.0,0.6258]
[1749012105405,1.6805169,105420.0,105410.0,0.6258]
[1749012105629,1.6627814,105420.0,105410.0,0.6258]
[1749012107476,1.6627814,105420.0,105410.0,0.33636]
[1749012107704,1.6627814,105420.0,105410.0,0.6258]
[1749012108403,1.68051762,105420.0,105410.0,0.6258]
[1749012108628,1.6627814,105420.0,105410.0,0.6258]
[1749012108906,0.34906972,105420.0,105410.0,0.6567]
[1749012109137,1.13130492,105420.0,105410.0,0.6567]
[1749012116787,1.13130492,105420.0,105410.0,0.9297]
[1749012120858,1.13130492,105420.0,105410.0,0.64026]
[1749012121067,1.13130492,105420.0,105410.0,0.92962]
[1749012131039,1.13130492,105420.0,105410.0,0.64026]
[1749012131263,1.13130492,105420.0,105410.0,0.92958]
[1749012134585,1.14680492,105420.0,105410.0,0.52068]
[1749012134811,1.14680492,105420.0,105410.0,0.8986]
[1749012135030,1.54245738,105420.0,105410.0,0.52068]
[1749012135264,1.56683551,105420.0,105410.0,0.8986]
[1749012136331,1.58457827,105420.0,105410.0,0.8986]
[1749012136560,1.5668358,105420.0,105410.0,0.8986]
[1749012137027,1.58457815,105420.0,105410.0,0.8986]
[1749012137237,1.60232092,105420.0,105410.0,0.8986]
[1749012137446,1.58457815,105420.0,105410.0,0.8986]
[1749012140022,1.56927815,105420.0,105410.0,0.8986]
[1749012140243,1.17362569,105420.0,105410.0,0.8986]
[1749012140493,1.17362557,105420.0,105410.0,0.8986]
[1749012141408,0.38232065,105420.0,105410.0,0.8986]
[1749012141639,1.15812557,105420.0,105410.0,0.8986]
[1749012142565,1.14904727,105420.0,105410.0,0.8986]
[1749012152154,6.005e-05,105410.0,105400.0,0.04119131]
[1749012152372,0.39571251,105410.0,105400.0,0.12971131]
[1749012153220,0.39571251,105410.0,105400.0,0.41895131]
[1749012153470,0.39571251,105410.0,105400.0,0.42095131]
[1749012153949,0.39571251,105410.0,105400.0,0.42395131]
[1749012155019,0.39571251,105410.0,105400.0,0.42391131]
[1749012155216,0.39571251,105410.0,105400.0,0.69691131]
[1749012155576,0.39571251,105410.0,105400.0,0.94259131]
[1749012157321,0.39565246,105410.0,105400.0,0.94259131]
[1749012158208,0.39565246,105410.0,105400.0,0.94253125]
[1749012164829,0.39565246,105410.0,105400.0,0.94249125]
[1749012165300,0.79130492,105410.0,105400.0,0.92689125]
[1749012166981,0.80750492,105410.0,105400.0,0.53371125]
[1749012167207,0.80750492,105410.0,105400.0,0.91139125]
[1749012167661,0.79130492,105410.0,105400.0,0.91139125]
[1749012168552,0.79130492,105410.0,105400.0,0.53371125]
[1749012168831,0.79130492,105410.0,105400.0,0.91139125]
[1749012169272,0.81971957,105410.0,105400.0,0.91139125]
[1749012171406,0.81971957,105410.0,105400.0,0.92679125]
[1749012171865,0.81971957,105410.0,105400.0,0.91139125]
[1749012172332,0.81971957,105410.0,105400.0,0.53371125]
[1749012172556,0.85011957,105410.0,105400.0,0.91139125]
[1749012173240,0.85011957,105410.0,105400.0,0.62223125]
[1749012173485,0.85011957,105410.0,105400.0,0.91135125]
[1749012173709,0.85011957,105410.0,105400.0,0.90935125]
[1749012174127,0.85011957,105410.0,105400.0,0.91035125]
[1749012174342,0.85011957,105410.0,105400.0,0.90735125]
[1749012174552,0.85011957,105410.0,105400.0,0.90835125]
[1749012184472,0.38644085,105400.0,105390.0,0.273]
[1749012184739,1.67852687,105400.0,105390.0,0.62332813]
[1749012184988,1.74406615,105400.0,105390.0,0.62332813]
[1749012185211,0.44825093,105400.0,105390.0,0.62332813]
[1749012185423,0.79130492,105400.0,105390.0,0.89632813]
[1749012185655,0.001,105400.0,105390.0,0.53476813]
[1749012185865,0.001,105400.0,105390.0,0.91232813]
[1749012185866,0.79230492,105400.0,105390.0,0.91232813]
[1749012187251,0.79430492,105400.0,105390.0,0.91232813]
[1749012189624,0.79430492,105400.0,105390.0,0.89632813]
[1749012192485,0.79430492,105400.0,105390.0,0.91252813]
[1749012192706,0.79430492,105400.0,105390.0,0.92772813]
[1749012195334,0.003,105400.0,105390.0,0.92772813]
[1749012195572,0.79430492,105400.0,105390.0,0.92772813]
[1749012197322,0.79230492,105400.0,105390.0,0.92772813]
[1749012197931,0.79130492,105400.0,105390.0,0.92772813]
[1749012223896,0.79130492,105400.0,105390.0,0.92760813]
[1749012225103,0.05321248,105410.0,105390.0,1.47856243]
[1749012225353,0.44886494,105410.0,105400.0,0.1275543]
[1749012227194,0.44986494,105410.0,105400.0,0.1275543]
[1749012227403,0.45086494,105410.0,105400.0,0.1275543]
[1749012227845,0.44986494,105410.0,105400.0,0.1275543]
[1749012228065,0.45186494,105410.0,105400.0,0.1285543]
[1749012231099,0.45186494,105410.0,105400.0,0.1122543]
[1749012234549,0.45186494,105410.0,105400.0,0.4011343]
[1749012234764,0.48316494,105410.0,105400.0,0.001]
[1749012234994,0.48316494,105410.0,105400.0,0.28988]
[1749012236153,0.48316494,105410.0,105400.0,0.37828]
[1749012239125,0.46716494,105410.0,105400.0,0.37828]
[1749012239387,0.48216494,105410.0,105400.0,0.37828]
[1749012240172,0.48216494,105410.0,105400.0,0.001]
[1749012240390,0.48216494,105410.0,105400.0,0.37816]
[1749012241795,0.48216494,105410.0,105400.0,0.08932]
[1749012241963,0.48216494,105410.0,105400.0,0.37816]
[1749012242804,0.48216494,105410.0,105400.0,0.62384]
[1749012245374,0.08651248,105410.0,105400.0,0.62384]
[1749012245465,0.8778174,105410.0,105400.0,0.62384]
[1749012247525,0.8778174,105410.0,105400.0,0.89684]
[1749012247753,0.8778174,105410.0,105400.0,0.608]
[1749012247958,0.8778174,105410.0,105400.0,0.8968]
[1749012249752,0.48216494,105410.0,105400.0,0.8968]
[1749012252766,0.08651248,105410.0,105400.0,0.8968]
[1749012253032,0.07151248,105410.0,105400.0,0.8968]
[1749012253244,0.45186494,105410.0,105400.0,0.8968]
[1749012254342,0.45186494,105410.0,105400.0,0.9121]
[1749012254565,0.45186494,105410.0,105400.0,0.9282]
[1749012255421,0.45186494,105410.0,105400.0,0.9121]
[1749012258229,0.45186494,105410.0,105400.0,0.8968]
[1749012268314,0.45186494,105410.0,105400.0,0.9282]
[1749012268522,0.45186494,105410.0,105400.0,1.0240543]
[1749012272950,0.05621248,105410.0,105400.0,1.0240543]
[1749012273223,0.45186494,105410.0,105400.0,1.0240543]
[1749012281442,0.05621248,105410.0,105400.0,1.0240543]
[1749012281668,0.45186494,105410.0,105400.0,1.0240543]
[1749012281892,0.45186494,105410.0,105400.0,1.5105543]
[1749012287234,0.05621248,105410.0,105400.0,1.5105543]
[1749012287466,0.45186494,105410.0,105400.0,1.5105543]
[1749012301259,0.05621248,105410.0,105400.0,1.5105543]
[1749012302865,0.45186494,105410.0,105400.0,1.5105543]
[1749012303285,0.45186494,105410.0,105400.0,1.0240543]
[1749012303676,0.45186494,105410.0,105400.0,1.0238143]
[1749012309101,0.39865246,105410.0,105400.0,1.5102743]
[1749012317187,0.38859625,105410.0,105400.0,1.4948743]
[1749012327724,0.39565246,105410.0,105400.0,1.5108743]
[1749012328839,0.39565246,105420.0,105400.0,1.5108743]
[1749012329052,0.39565246,105420.0,105410.0,0.18638571]
[1749012330261,0.003,105420.0,105410.0,0.18638571]
[1749012330489,0.39765246,105420.0,105410.0,0.18638571]
[1749012330943,0.79330492,105420.0,105410.0,0.18638571]
[1749012331163,0.79630492,105420.0,105410.0,0.18738571]
[1749012331419,0.79630492,105420.0,105410.0,0.19683585]
[1749012331637,0.79630492,105420.0,105410.0,0.19446444]
[1749012331861,0.40065246,105420.0,105410.0,0.19446444]
[1749012332528,0.40056504,105420.0,105410.0,0.19446444]
[1749012334585,0.7962175,105420.0,105410.0,0.19446444]
[1749012335048,0.40056504,105420.0,105410.0,0.19446444]
[1749012336006,0.8273175,105420.0,105410.0,0.48286444]
[1749012338058,0.8273175,105420.0,105410.0,0.72854444]
[1749012342835,0.43166504,105420.0,105410.0,1.00150444]
[1749012349184,0.43096504,105420.0,105410.0,1.00150444]
[1749012351634,0.43096504,105420.0,105410.0,1.00134444]
[1749012352951,0.8266175,105420.0,105410.0,1.00134444]
[1749012353410,0.43096504,105420.0,105410.0,1.00134444]
[1749012354761,0.8266175,105420.0,105410.0,0.89604]
[1749012355200,1.56226996,105420.0,105410.0,0.51964]
[1749012355412,1.56226996,105420.0,105410.0,0.89604]
[1749012355866,1.17569154,105420.0,105410.0,0.89604]
[1749012356744,1.1666175,105420.0,105410.0,0.89604]
[1749012358130,1.56226996,105420.0,105410.0,0.51964]
[1749012358351,1.56226996,105420.0,105410.0,0.89604]
[1749012358352,1.6671945,105420.0,105410.0,0.89604]
[1749012358573,1.6849313,105420.0,105410.0,0.89604]
[1749012358819,1.68493097,105420.0,105410.0,0.89604]
[1749012359084,1.68493113,105420.0,105410.0,0.89604]
[1749012359313,1.6671945,105420.0,105410.0,0.51964]
[1749012359605,1.68173535,105420.0,105410.0,0.60764]
[1749012359836,1.74725935,105420.0,105410.0,0.89596]
[1749012360289,1.77572735,105420.0,105410.0,0.89596]
[1749012360742,1.79346262,105420.0,105410.0,0.89596]
[1749012360960,1.77572735,105420.0,105410.0,0.89596]
[1749012361404,1.79346317,105420.0,105410.0,0.89596]
[1749012361654,1.77572735,105420.0,105410.0,0.89596]
[1749012362109,1.79346317,105420.0,105410.0,0.89596]
[1749012362339,1.77572735,105420.0,105410.0,0.89596]
[1749012362532,1.79346351,105420.0,105410.0,0.89596]
[1749012362747,1.79346331,105420.0,105410.0,0.89596]
[1749012363025,0.58876997,105420.0,105410.0,0.60764]
[1749012363235,1.77572735,105420.0,105410.0,0.89596]
[1749012364131,1.79346324,105420.0,105410.0,0.89596]
[1749012364368,1.77572735,105420.0,105410.0,0.89596]
[1749012364592,1.76656583,105420.0,105410.0,0.89596]
[1749012364813,1.77562029,105420.0,105410.0,0.89596]
[1749012365032,1.79335609,105420.0,105410.0,0.89596]
[1749012365216,1.77562029,105420.0,105410.0,0.89596]
[1749012365423,1.71018757,105420.0,105410.0,0.89596]
[1749012366512,1.72792374,105420.0,105410.0,0.89596]
[1749012366824,1.71018757,105420.0,105410.0,0.89596]
[1749012368781,1.72791858,105420.0,105410.0,0.89596]
[1749012368993,1.71018232,105420.0,105410.0,0.89596]
[1749012369428,1.72791827,105420.0,105410.0,0.89596]
[1749012369659,1.71018232,105420.0,105410.0,0.89596]
[1749012369877,1.72791827,105420.0,105410.0,0.89596]
[1749012370070,1.71018232,105420.0,105410.0,0.89596]
[1749012370276,1.72791827,105420.0,105410.0,0.89596]
[1749012370502,1.71018232,105420.0,105410.0,0.89596]
[1749012371134,1.72791836,105420.0,105410.0,0.89596]
[1749012371353,1.71018232,105420.0,105410.0,0.89596]
[1749012372009,1.72791812,105420.0,105410.0,0.89596]
[1749012372229,1.71018232,105420.0,105410.0,0.89596]
[1749012372670,1.70113311,105420.0,105410.0,0.89596]
[1749012372897,1.71018021,105420.0,105410.0,0.89596]
[1749012373137,1.72791538,105420.0,105410.0,0.89596]
[1749012373359,1.71018021,105420.0,105410.0,0.89596]
[1749012373597,1.72791556,105420.0,105410.0,0.89596]
[1749012373811,1.71018021,105420.0,105410.0,0.89596]
[1749012374516,1.8204244,105420.0,105410.0,0.89596]
[1749012374736,1.80269143,105420.0,105410.0,0.89596]
[1749012375171,1.71018021,105420.0,105410.0,0.89596]
[1749012375394,1.72791218,105420.0,105410.0,0.89596]
[1749012375622,1.71018021,105420.0,105410.0,0.89596]
[1749012375977,1.72791213,105420.0,105410.0,0.89596]
[1749012376153,1.71018021,105420.0,105410.0,0.89596]
[1749012376581,1.72791204,105420.0,105410.0,0.89596]
[1749012376805,1.71017921,105420.0,105410.0,0.89596]
[1749012377448,1.72791082,105420.0,105410.0,0.89596]
[1749012377652,1.71017921,105420.0,105410.0,0.896]
[1749012377862,1.80269043,105420.0,105410.0,0.896]
[1749012378063,1.71017921,105420.0,105410.0,0.896]
[1749012380668,1.72791692,105420.0,105410.0,0.896]
[1749012380888,1.71018512,105420.0,105410.0,0.896]
[1749012382211,1.72791692,105420.0,105410.0,0.896]
[1749012382413,1.71018512,105420.0,105410.0,0.896]
[1749012382628,1.72791691,105420.0,105410.0,0.896]
[1749012382841,1.71018512,105420.0,105410.0,0.896]
[1749012385038,1.72150014,105420.0,105410.0,0.896]
[1749012385673,1.73923456,105420.0,105410.0,0.896]
[1749012385897,1.72150014,105420.0,105410.0,0.896]
[1749012386123,1.73923456,105420.0,105410.0,0.896]
[1749012386351,1.72150014,105420.0,105410.0,0.896]
[1749012386629,0.53454276,105420.0,105410.0,0.896]
[1749012386890,1.72150014,105420.0,105410.0,0.896]
[1749012387346,1.73923513,105420.0,105410.0,0.896]
[1749012387583,1.72150014,105420.0,105410.0,0.896]
[1749012388023,1.73923509,105420.0,105410.0,0.896]
[1749012388274,1.72150014,105420.0,105410.0,0.896]
[1749012388929,1.72155812,105420.0,105410.0,0.896]
[1749012389609,1.73929249,105420.0,105410.0,0.896]
[1749012389838,1.72155812,105420.0,105410.0,0.896]
[1749012390043,1.73929249,105420.0,105410.0,0.896]
[1749012390250,1.72155812,105420.0,105410.0,0.896]
[1749012390870,1.73929037,105420.0,105410.0,0.896]
[1749012391069,1.73929031,105420.0,105410.0,0.896]
[1749012391288,1.72155812,105420.0,105410.0,0.896]
[1749012392119,1.73929139,105420.0,105410.0,0.896]
[1749012392323,1.72155812,105420.0,105410.0,0.896]
[1749012392963,1.73929483,105420.0,105410.0,0.896]
[1749012393171,1.72155985,105420.0,105410.0,0.896]
[1749012393838,1.70113311,105420.0,105410.0,0.896]
[1749012394051,1.72155981,105420.0,105410.0,0.896]
[1749012395733,1.78695979,105420.0,105410.0,0.896]
[1749012397198,1.80469434,105420.0,105410.0,0.896]
[1749012397412,1.78695963,105420.0,105410.0,0.896]
[1749012399179,1.80469487,105420.0,105410.0,0.896]
[1749012399395,1.78695963,105420.0,105410.0,0.896]
[1749012400847,1.78695963,105420.0,105410.0,0.89592]
[1749012401085,1.80481567,105420.0,105410.0,0.89592]
[1749012401307,1.78707965,105420.0,105410.0,0.89592]
[1749012401524,1.80481565,105420.0,105410.0,0.89592]
[1749012401746,1.80481567,105420.0,105410.0,0.89592]
[1749012401964,1.78707965,105420.0,105410.0,0.89592]
[1749012402633,1.75359764,105420.0,105410.0,0.89592]
[1749012403976,1.77133359,105420.0,105410.0,0.89592]
[1749012404209,1.75359764,105420.0,105410.0,0.89592]
[1749012405152,1.75362761,105420.0,105410.0,0.89592]
[1749012405373,1.77136356,105420.0,105410.0,0.89592]
[1749012405628,1.75362761,105420.0,105410.0,0.89592]
[1749012407739,1.74289556,105420.0,105410.0,0.89592]
[1749012407968,1.72515961,105420.0,105410.0,0.89592]
[1749012408961,1.74289501,105420.0,105410.0,0.89592]
[1749012409193,1.7251604,105420.0,105410.0,0.89592]
[1749012411117,1.7428965,105420.0,105410.0,0.89592]
[1749012411592,1.74289651,105420.0,105410.0,0.89592]
[1749012411810,1.7251604,105420.0,105410.0,0.89592]
[1749012412020,1.7428965,105420.0,105410.0,0.89592]
[1749012412228,1.7251604,105420.0,105410.0,0.89592]
[1749012412439,1.7428965,105420.0,105410.0,0.89592]
[1749012412930,1.7251604,105420.0,105410.0,0.60768]
[1749012413146,1.7251604,105420.0,105410.0,0.89588]
[1749012413372,1.72516099,105420.0,105410.0,0.89588]
[1749012413606,1.72516099,105420.0,105410.0,0.89584]
[1749012413828,1.74289706,105420.0,105410.0,0.89584]
[1749012414262,1.72516099,105420.0,105410.0,0.89584]
[1749012414470,1.74289708,105420.0,105410.0,0.89584]
[1749012414683,1.72516099,105420.0,105410.0,0.89584]
[1749012415969,1.74289708,105420.0,105410.0,0.89584]
[1749012416223,1.72516099,105420.0,105410.0,0.51964]
[1749012416434,1.74289708,105420.0,105410.0,0.89584]
[1749012416593,1.72516099,105420.0,105410.0,0.51964]
[1749012416827,1.72516099,105420.0,105410.0,0.89584]
[1749012417026,1.74289708,105420.0,105410.0,0.89584]
[1749012417295,1.72516099,105420.0,105410.0,0.89584]
[1749012417478,1.74289708,105420.0,105410.0,0.89584]
[1749012417651,1.72516099,105420.0,105410.0,0.89584]
[1749012419883,1.74289708,105420.0,105410.0,0.89584]